bitfinex-derivatives/quotes_ETHF0:USTF0_20250103
["timestamp","ask_amount","ask_price","bid_price","bid_amount"]
[1735866958523,3.2078,3448.0,3447.8,0.29033]
[1735866958726,3.49813,3448.0,3447.8,0.29033]
[1735866958924,3.2078,3448.0,3447.8,0.29033]
[1735866959121,3.2078,3448.0,3447.9,0.29033]
[1735866960223,3.2078,3448.0,3447.6,2.296662]
[1735866960426,3.2078,3448.0,3447.9,0.29033]
[1735866961819,3.2078,3448.0,3447.9,2.586992]
[1735866965522,3.2078,3448.0,3447.9,0.29033]
[1735866965723,3.49813,3448.0,3447.7,0.29035]
[1735866965922,3.49813,3448.0,3447.8,0.29034]
[1735866966326,3.2078,3448.0,3447.6,3.444662]
[1735866966517,0.29034,3447.8,3447.7,0.29035]
[1735866966722,3.49813,3448.0,3447.8,0.29034]
[1735866966921,3.49813,3448.0,3447.7,0.29035]
[1735866967127,3.49813,3448.0,3447.8,0.29033]
[1735866967329,3.2078,3448.0,3447.9,0.29033]
[1735866969127,3.49813,3448.0,3447.8,0.29033]
[1735866969430,0.29033,3447.9,3447.7,0.29034]
[1735866970331,0.29034,3447.8,3447.6,3.735012]
[1735866970531,0.29034,3447.9,3447.7,0.29034]
[1735866970830,0.29034,3447.9,3447.8,0.29034]
[1735866971026,3.2078,3448.0,3447.8,0.29034]
[1735866971235,3.2078,3448.0,3447.6,3.444662]
[1735866971425,3.2078,3448.0,3447.9,0.29033]
[1735866975433,3.2078,3448.0,3447.9,2.586992]
[1735866980235,3.2078,3448.0,3447.9,0.29033]
[1735866983037,3.2078,3448.0,3447.6,3.444662]
[1735866983242,3.2078,3448.0,3447.5,3.2078]
[1735866983438,3.49813,3448.0,3447.8,0.29034]
[1735866984137,3.2078,3448.0,3447.8,0.29034]
[1735866984337,3.2078,3448.0,3447.5,3.2078]
[1735866984640,3.2078,3448.0,3447.9,0.29033]
[1735866987534,40.8,3448.3,3448.2,0.29031]
[1735866989044,3.2078,3448.5,3448.4,0.29029]
[1735866989342,3.2078,3448.5,3448.4,2.586952]
[1735866991241,3.2078,3448.5,3448.4,7.44676325]
[1735866992744,3.2078,3448.5,3448.4,14.28515247]
[1735866993941,3.2078,3449.0,3448.4,19.28515247]
[1735866994142,3.2078,3449.0,3448.9,0.29025]
[1735866994442,3.2078,3449.0,3448.9,1.43425]
[1735866994649,2.25806318,3449.1,3449.0,0.29024]
[1735866995448,46.26586318,3449.6,3449.5,0.2902]
[1735866996939,44.0078,3449.6,3449.5,0.2902]
[1735866997946,44.29799,3449.6,3449.3,0.29021]
[1735866998148,44.0078,3449.6,3448.9,7.12862922]
[1735866998343,3.2078,3449.2,3448.9,7.12862922]
[1735866998839,0.29023,3449.1,3448.9,6.83838922]
[1735866999345,0.29024,3449.0,3448.9,4.73628922]
[1735866999745,3.2078,3449.2,3448.9,4.73628922]
[1735866999947,0.29023,3449.1,3448.9,4.73628922]
[1735867000148,0.29023,3449.1,3448.8,0.29026]
[1735867000949,0.29023,3449.1,3448.9,0.29025]
[1735867001142,3.49803,3449.2,3449.0,0.29023]
[1735867001349,3.2078,3449.2,3449.0,0.29023]
[1735867001550,3.49802,3449.2,3449.0,0.29023]
[1735867003062,3.49802,3449.2,3448.5,3.440662]
[1735867003063,3.49802,3449.2,3448.5,2.296662]
[1735867003248,3.49802,3449.2,3449.0,0.29023]
[1735867004138,3.49802,3449.2,3448.6,1.144]
[1735867004139,3.2078,3449.2,3448.6,1.144]
[1735867004443,3.2078,3449.2,3449.1,0.29023]
[1735867005551,3.2078,3449.2,3449.1,2.586892]
[1735867006241,2.25806318,3449.5,3449.1,2.296662]
[1735867006446,2.25806318,3449.5,3449.4,2.586862]
[1735867007147,3.2078,3449.6,3449.5,0.2902]
[1735867010651,3.2078,3449.6,3449.3,1.144]
[1735867010854,3.2078,3449.6,3449.5,0.2902]
[1735867013157,3.2078,3449.6,3449.3,1.144]
[1735867013459,3.2078,3449.6,3449.5,0.2902]
[1735867016059,40.8,3449.7,3449.5,0.2902]
[1735867016248,3.2078,3449.6,3449.5,0.2902]
[1735867016454,3.2078,3449.6,3449.4,0.2902]
[1735867016960,3.2078,3449.6,3449.3,1.144]
[1735867017165,3.2078,3449.6,3449.5,2.586862]
[1735867020055,3.2078,3449.7,3449.5,2.296662]
[1735867020255,3.2078,3449.7,3449.6,0.29019]
[1735867021956,3.2078,3449.7,3449.3,1.144]
[1735867022155,3.2078,3449.7,3449.6,0.29019]
[1735867024656,3.2078,3449.7,3449.6,2.586852]
[1735867025065,3.2078,3449.7,3449.6,0.29019]
[1735867026971,3.2078,3449.7,3449.5,2.296662]
[1735867027167,3.2078,3449.7,3449.5,0.29019]
[1735867027465,3.49799,3449.7,3449.3,1.144]
[1735867027661,3.2078,3449.7,3449.3,1.144]
[1735867027859,3.2078,3449.7,3449.6,0.29019]
[1735867029870,3.2078,3449.7,3449.3,2.296662]
[1735867030068,3.2078,3449.7,3449.0,1.142]
[1735867030069,0.29023,3449.2,3449.0,1.142]
[1735867030365,3.2078,3449.2,3449.1,0.29023]
[1735867030565,0.29019,3449.6,3449.0,3.438662]
[1735867030566,3.2078,3449.6,3449.0,3.438662]
[1735867030771,3.2078,3449.6,3449.5,0.2902]
[1735867031370,3.2078,3449.6,3449.0,1.142]
[1735867031371,3.49799,3449.6,3449.3,0.29021]
[1735867031566,0.29021,3449.4,3449.2,2.586882]
[1735867031775,0.29021,3449.4,3449.1,0.29023]
[1735867032068,3.49803,3449.2,3449.0,0.29023]
[1735867033067,3.2078,3449.2,3448.9,2.296662]
[1735867033260,3.2078,3449.2,3448.9,1.142]
[1735867033261,0.29024,3449.0,3448.9,1.142]
[1735867033461,3.2078,3449.2,3448.7,1.43226]
[1735867033668,3.2078,3448.8,3448.7,1.43226]
[1735867034269,44.0078,3448.8,3448.7,1.43226]
[1735867035674,3.2078,3448.8,3448.7,1.142]
[1735867035975,3.49806,3448.8,3448.7,1.142]
[1735867036271,44.29806,3448.8,3448.7,1.142]
[1735867036468,3.49806,3448.8,3448.7,1.142]
[1735867037067,44.29806,3448.8,3448.7,1.142]
[1735867039162,3.49806,3448.8,3448.7,1.142]
[1735867040072,3.49806,3448.8,3448.7,1.43226]
[1735867040778,3.2078,3448.8,3448.7,1.43226]
[1735867042078,3.49806,3448.8,3448.7,1.43226]
[1735867042472,3.49806,3448.8,3448.7,1.142]
[1735867043174,3.2078,3448.8,3448.7,1.43226]
[1735867043374,3.2078,3448.8,3448.7,1.142]
[1735867043577,0.29027,3448.7,3448.6,0.29027]
[1735867043773,3.49806,3448.8,3448.7,0.29026]
[1735867044374,3.2078,3448.8,3448.7,0.29026]
[1735867045079,3.49806,3448.8,3448.6,0.29027]
[1735867045274,3.49806,3448.8,3448.0,3.93361]
[1735867045275,3.2078,3448.8,3448.0,3.2078]
[1735867045479,0.29028,3448.6,3448.1,3.442662]
[1735867045679,0.29028,3448.6,3448.5,0.29028]
[1735867046282,3.2078,3448.8,3448.1,3.442662]
[1735867046476,0.29027,3448.6,3448.4,0.29029]
[1735867046876,3.2078,3448.8,3448.2,0.2903]
[1735867047185,40.8,3448.9,3447.7,9.1287849]
[1735867047186,3.2078,3448.4,3447.7,9.1287849]
[1735867047380,3.2078,3448.0,3447.7,9.1287849]
[1735867047684,0.29034,3447.9,3447.7,9.1287849]
[1735867047981,3.2078,3448.0,3447.7,9.1287849]
[1735867047982,3.49813,3448.0,3447.7,9.1287849]
[1735867048182,3.49813,3448.0,3447.7,9.4191349]
[1735867048574,3.2078,3448.0,3447.8,0.29034]
[1735867050878,3.2078,3448.0,3447.5,2.296662]
[1735867051083,3.49813,3448.0,3447.7,0.29034]
[1735867051386,3.2078,3448.0,3447.8,0.29034]
[1735867051880,3.2078,3448.0,3447.5,2.296662]
[1735867052187,3.2078,3447.6,3447.4,0.29037]
[1735867052384,0.29037,3447.5,3447.1,0.29039]
[1735867052580,0.29037,3447.5,3447.1,0.2904]
[1735867052887,0.29038,3447.4,3447.1,0.2904]
[1735867053183,40.8,3447.5,3447.0,1.146]
[1735867053184,40.8,3447.5,3447.2,0.29039]
[1735867053383,0.29037,3447.4,3447.0,1.146]
[1735867053586,0.29037,3447.4,3447.1,0.29039]
[1735867054291,40.8,3447.5,3446.9,3.443662]
[1735867054488,40.8,3447.5,3447.3,0.29037]
[1735867054887,40.8,3447.5,3447.2,0.29038]
[1735867054888,41.09037,3447.5,3447.2,0.29038]
[1735867055189,0.29037,3447.5,3447.2,0.29039]
[1735867055783,40.8,3447.4,3446.9,3.443662]
[1735867055983,40.8,3447.4,3447.0,0.29041]
[1735867056184,40.8,3447.4,3447.2,0.29038]
[1735867056391,3.2078,3447.6,3447.5,0.29036]
[1735867058588,3.2078,3447.6,3447.5,2.587022]
[1735867058789,3.2078,3448.0,3447.9,0.29033]
[1735867059189,3.49813,3448.0,3447.8,0.29034]
[1735867059487,3.49812,3448.0,3447.6,1.147]
[1735867059690,3.49812,3448.0,3447.8,0.29033]
[1735867060191,3.49812,3448.0,3447.5,0.29036]
[1735867060192,0.29035,3447.7,3447.5,0.29036]
[1735867060379,3.2078,3447.6,3447.5,0.29036]
[1735867061083,3.2078,3447.6,3447.1,3.443662]
[1735867061289,3.2078,3447.6,3447.4,0.29037]
[1735867061484,3.2078,3447.6,3447.2,0.29039]
[1735867061685,3.2078,3447.6,3447.1,3.443662]
[1735867061686,3.2078,3447.6,3447.4,0.29037]
[1735867062692,3.2078,3447.6,3447.1,3.443662]
[1735867062881,3.2078,3447.6,3447.5,0.29036]
[1735867071592,3.2078,3447.6,3447.1,3.443662]
[1735867071801,0.29037,3447.4,3447.3,0.29038]
[1735867072094,0.29037,3447.5,3447.4,0.29037]
[1735867072399,3.49816,3447.6,3447.5,0.29036]
[1735867073496,3.2078,3447.6,3447.5,0.29036]
[1735867074398,3.49816,3447.6,3447.5,0.29036]
[1735867075402,3.2078,3447.6,3447.5,0.29036]
[1735867075798,3.49816,3447.6,3447.5,0.29036]
[1735867077901,3.2078,3447.6,3447.5,0.29036]
[1735867078201,3.49816,3447.6,3447.5,0.29036]
[1735867078798,3.2078,3447.6,3447.5,0.29036]
[1735867080103,3.2078,3448.0,3447.5,0.29036]
[1735867080293,3.2078,3448.0,3447.9,0.29033]
[1735867083006,3.49812,3448.0,3447.9,0.29033]
[1735867084202,3.2078,3448.0,3447.5,2.296662]
[1735867084411,3.2078,3447.6,3447.5,3.439662]
[1735867084605,3.2078,3447.6,3447.5,3.730022]
[1735867088313,3.2078,3447.6,3447.5,8.27150046]
[1735867088614,0.29033,3448.0,3447.5,7.98114046]
[1735867088812,3.2078,3447.6,3447.5,8.27150046]
[1735867092214,3.2078,3447.6,3447.5,6.98562843]
[1735867092715,3.2078,3447.6,3447.5,10.65290357]
[1735867094316,3.2078,3447.6,3447.5,9.6421136]
[1735867094515,5.46586318,3447.6,3447.5,0.29036]
[1735867097314,3.2078,3447.6,3447.5,4.83183846]
[1735867097511,2.25806318,3447.7,3447.6,0.29036]
[1735867097720,2.25806318,3447.7,3447.6,2.59020753]
[1735867098817,7.73061149,3448.0,3447.6,2.59020753]
[1735867098818,3.2078,3448.0,3447.9,0.29033]
[1735867100217,3.2078,3448.0,3447.9,4.85632897]
[1735867101416,3.2078,3448.0,3447.9,4.56599897]
[1735867101610,3.2078,3448.0,3447.8,4.85632897]
[1735867101925,40.8,3447.9,3447.8,4.85632897]
[1735867103017,41.09033,3447.9,3447.8,4.56599897]
[1735867103218,0.29034,3447.8,3447.7,4.56599897]
[1735867104222,41.09034,3447.8,3447.7,4.56599897]
[1735867104617,0.29035,3447.7,3447.5,0.29036]
[1735867104918,3.2078,3447.6,3447.5,0.29036]
[1735867105712,3.2078,3447.6,3447.5,4.85635897]
[1735867106921,3.2078,3447.6,3447.5,0.29036]
[1735867110820,3.2078,3447.6,3447.5,4.85635897]
[1735867113520,3.2078,3447.6,3447.5,11.95261844]
[1735867113720,2.26230604,3447.9,3447.8,0.29034]
[1735867113920,2.26230604,3447.9,3447.8,2.59018753]
[1735867115325,3.2078,3448.1,3447.8,13.96210597]
[1735867115526,3.2078,3448.1,3448.0,0.29032]
[1735867120432,3.2078,3448.1,3447.9,4.56531765]
[1735867120626,0.29032,3448.0,3447.9,4.56531765]
[1735867121130,41.09032,3448.0,3447.9,4.56531765]
[1735867121526,41.09032,3448.0,3447.9,2.46381765]
[1735867121729,0.29036,3447.6,3447.3,7.13937845]
[1735867121929,3.2078,3447.5,3447.4,0.29037]
[1735867123332,5.47098141,3447.5,3447.4,0.29037]
[1735867123532,5.76134141,3447.5,3447.4,0.29037]
[1735867123831,5.47098141,3447.5,3447.4,0.29037]
[1735867125231,6.60257212,3447.5,3447.4,0.29037]
[1735867126131,6.60257212,3447.5,3447.0,9.14884598]
[1735867126333,6.89294212,3447.5,3447.3,0.29038]
[1735867126535,3.49817,3447.5,3447.3,0.29038]
[1735867126728,40.8,3447.4,3447.3,0.29038]
[1735867127332,3.49817,3447.5,3447.3,0.29038]
[1735867127732,44.29817,3447.5,3447.3,0.29038]
[1735867128035,2.2627482,3447.4,3447.3,0.29038]
[1735867128831,2.5531182,3447.4,3447.3,0.29038]
[1735867129235,2.5531182,3447.4,3447.0,2.29984753]
[1735867129236,0.29039,3447.3,3447.1,0.2904]
[1735867129436,2.2627482,3447.4,3447.0,2.29984753]
[1735867129739,2.5531282,3447.4,3447.2,0.29038]
[1735867130542,0.29038,3447.3,3447.2,0.29038]
[1735867130938,2.2627482,3447.4,3447.2,0.29038]
[1735867131240,2.5531282,3447.4,3447.2,0.29038]
[1735867132036,0.29038,3447.3,3447.2,0.29038]
[1735867132540,0.29038,3447.3,3447.1,0.29039]
[1735867132740,0.29038,3447.3,3447.0,2.29984753]
[1735867133341,2.2627482,3447.4,3447.2,0.29039]
[1735867133541,0.29038,3447.3,3447.1,0.29039]
[1735867133739,2.5531282,3447.4,3447.2,0.29039]
[1735867134240,2.2627482,3447.4,3447.0,2.29984753]
[1735867134437,0.29039,3447.3,3446.9,1.141]
[1735867134641,0.29039,3447.3,3447.1,0.2904]
[1735867135434,2.5531282,3447.4,3447.2,0.29039]
[1735867135633,0.29039,3447.2,3447.0,0.2904]
[1735867135839,2.2627482,3447.3,3446.9,1.141]
[1735867136039,2.5531282,3447.3,3447.1,0.29039]
[1735867136341,2.2627482,3447.3,3447.1,0.29039]
[1735867136535,2.5531282,3447.3,3447.1,0.29039]
[1735867137042,0.29038,3447.3,3447.1,0.29039]
[1735867138445,2.2627482,3447.3,3446.7,3.43584753]
[1735867138737,2.2627482,3447.3,3447.2,0.29039]
[1735867139141,2.2627482,3447.3,3447.2,2.59023753]
[1735867139844,3.2078,3447.5,3447.4,0.29037]
[1735867140439,2.5071,3447.5,3447.4,1.42637]
[1735867140935,2.2627482,3447.6,3447.4,1.136]
[1735867141139,2.2627482,3447.6,3447.5,2.59020753]
[1735867141140,0.8611482,3447.6,3447.5,2.59020753]
[1735867142744,40.8,3448.1,3447.9,0.29032]
[1735867142942,40.8,3448.1,3447.8,0.29034]
[1735867143148,41.09032,3448.1,3447.8,0.29034]
[1735867143646,40.8,3448.1,3447.5,13.87614499]
[1735867143849,3.2078,3447.8,3447.5,13.87614499]
[1735867144147,3.2078,3447.8,3447.6,0.29035]
[1735867144346,3.2078,3447.8,3447.7,0.29035]
[1735867145038,3.2078,3447.8,3447.5,2.29984753]
[1735867145239,0.29036,3447.6,3447.4,0.29037]
[1735867145558,0.29035,3447.7,3447.5,0.29036]
[1735867146244,3.2078,3447.8,3447.4,0.29037]
[1735867146444,0.29035,3447.7,3447.4,0.29037]
[1735867146646,0.29036,3447.6,3447.4,0.29037]
[1735867146850,3.2078,3447.8,3447.4,0.29037]
[1735867147042,0.29035,3447.7,3447.5,0.29036]
[1735867147352,3.49814,3447.8,3447.2,3.43584753]
[1735867147543,3.49814,3447.8,3447.5,0.29036]
[1735867147738,3.49814,3447.8,3447.6,0.29035]
[1735867148246,3.49814,3447.8,3447.2,3.43584753]
[1735867148446,3.49814,3447.8,3447.7,0.29035]
[1735867148749,3.2078,3447.8,3447.7,0.29035]
[1735867148937,44.0078,3447.8,3447.7,0.29035]
[1735867149142,3.2078,3447.8,3447.7,0.29035]
[1735867155150,3.39477212,3448.2,3447.5,2.29984753]
[1735867155151,6.60257212,3448.2,3447.5,2.29984753]
[1735867155345,6.60257212,3448.2,3447.3,7.57493845]
[1735867155346,6.60257212,3448.2,3447.8,2.29984753]
[1735867155550,6.60257212,3448.2,3448.1,0.29031]
[1735867156354,3.2078,3448.2,3448.1,0.29031]
[1735867156541,3.2078,3448.2,3448.1,2.59015753]
[1735867158449,47.40257212,3448.8,3448.1,2.29984753]
[1735867158649,47.40257212,3448.8,3448.7,0.29026]
[1735867159253,47.40257212,3448.8,3448.1,0.72578]
[1735867159454,44.0078,3448.8,3448.6,0.29027]
[1735867159955,44.0078,3448.8,3448.3,2.29984753]
[1735867160154,44.0078,3448.8,3448.7,0.29026]
[1735867161852,3.2078,3448.8,3448.7,0.29026]
[1735867163361,3.2078,3448.8,3448.3,2.29984753]
[1735867163664,0.29027,3448.7,3448.4,0.29028]
[1735867163854,3.2078,3448.8,3448.4,0.29028]
[1735867164157,0.29027,3448.6,3448.4,0.29029]
[1735867164361,3.2078,3448.8,3448.3,2.29984753]
[1735867164660,3.49806,3448.8,3448.5,0.29028]
[1735867164961,0.29027,3448.7,3448.5,0.29028]
[1735867165156,0.29027,3448.6,3448.4,0.29028]
[1735867165461,3.2078,3448.8,3448.3,0.29029]
[1735867165658,0.29028,3448.5,3448.3,0.29029]
[1735867166659,0.29028,3448.6,3448.4,0.29029]
[1735867166863,3.2078,3448.8,3448.1,1.138]
[1735867167068,3.2078,3448.8,3448.7,0.29026]
[1735867168063,3.49806,3448.8,3448.6,0.29027]
[1735867168862,3.49806,3448.8,3448.3,2.29984753]
[1735867168863,3.2078,3448.8,3448.3,2.29984753]
[1735867169061,3.2078,3448.8,3448.7,0.29026]
[1735867170458,3.49806,3448.8,3448.7,0.29026]
[1735867170657,0.29027,3448.7,3448.6,0.29027]
[1735867171455,3.49806,3448.8,3448.6,0.29027]
[1735867172258,3.2078,3448.8,3448.7,0.29026]
[1735867179064,3.2078,3448.8,3448.5,2.29984753]
[1735867179372,3.2078,3448.8,3448.5,0.29028]
[1735867179373,0.29027,3448.7,3448.5,0.29028]
[1735867179567,3.2078,3448.8,3448.2,2.29984753]
[1735867179768,0.29026,3448.7,3448.2,2.29984753]
[1735867179963,3.2078,3448.8,3448.2,2.29984753]
[1735867180268,0.29027,3448.6,3448.4,0.29028]
[1735867180471,3.2078,3448.8,3448.7,0.29026]
[1735867183271,3.2078,3448.8,3448.6,0.29027]
[1735867183272,3.49806,3448.8,3448.6,0.29027]
[1735867183670,3.2078,3448.8,3448.5,3.43784753]
[1735867183873,3.2078,3448.8,3448.7,0.29026]
[1735867186373,3.49806,3448.8,3448.6,0.29027]
[1735867186773,0.29027,3448.7,3448.5,3.72811753]
[1735867186972,3.49806,3448.8,3448.6,0.29027]
[1735867187470,3.2078,3448.8,3448.7,0.29026]
[1735867188674,3.2078,3448.8,3448.5,3.43784753]
[1735867188974,3.2078,3448.8,3448.7,0.29026]
[1735867195583,3.2078,3449.2,3449.1,0.29023]
[1735867195785,3.2078,3449.2,3449.1,2.59007753]
[1735867196373,3.39477212,3449.4,3449.3,0.29021]
[1735867196577,3.39477212,3449.4,3449.3,1.43121]
[1735867197579,3.39477212,3449.7,3449.3,1.141]
[1735867197877,3.39477212,3449.7,3449.5,2.29984753]
[1735867198479,3.39477212,3449.7,3449.6,0.29019]
[1735867198880,44.0078,3449.8,3449.7,0.29018]
[1735867199279,40.8,3449.8,3449.7,0.29018]
[1735867199480,44.0078,3449.8,3449.7,0.29018]
[1735867201489,3.2078,3449.8,3449.7,0.29018]
[1735867205099,3.49801,3449.4,3449.3,1.141]
[1735867205292,3.2078,3449.4,3449.3,1.141]
[1735867205595,3.2078,3449.4,3449.3,1.43121]
[1735867206896,3.39477212,3449.6,3449.5,0.2902]
[1735867207094,3.39477212,3449.6,3449.5,2.59004753]
[1735867207398,6.60257212,3449.8,3449.7,0.29018]
[1735867208490,3.2078,3449.8,3449.7,0.29018]
[1735867210194,3.49797,3449.8,3449.6,0.29019]
[1735867210393,3.49798,3449.8,3449.6,0.29018]
[1735867210790,3.2078,3449.8,3449.7,0.29018]
[1735867212195,3.2078,3449.8,3449.2,1.141]
[1735867212402,3.2078,3449.3,3449.2,1.141]
[1735867214404,3.2078,3449.3,3449.2,1.43122]
[1735867217106,6.60257212,3449.7,3449.2,1.141]
[1735867217406,6.60257212,3449.7,3449.5,0.29019]
[1735867217800,6.89276212,3449.7,3449.4,0.2902]
[1735867218404,3.49799,3449.7,3449.4,0.2902]
[1735867218706,3.2078,3449.7,3449.2,1.141]
[1735867218909,3.2078,3449.3,3449.2,1.43122]
[1735867219098,3.2078,3449.3,3449.2,1.141]
[1735867219099,3.49801,3449.3,3449.2,1.141]
[1735867219301,0.29023,3449.1,3448.9,0.29024]
[1735867219499,3.2078,3449.3,3448.6,6.84899845]
[1735867219695,0.29026,3448.8,3448.6,7.13926845]
[1735867220001,40.8,3448.7,3448.6,7.13926845]
[1735867220305,3.2078,3448.9,3448.8,0.29026]
[1735867220809,44.0078,3448.9,3448.8,0.29026]
[1735867223606,3.2078,3448.9,3448.8,0.29026]
[1735867226014,3.2078,3448.9,3448.7,2.29984753]
[1735867226015,44.48499212,3449.2,3448.7,2.29984753]
[1735867226209,3.2078,3448.9,3448.8,0.29026]
[1735867228416,3.49805,3448.9,3448.8,0.29026]
[1735867228711,3.2078,3448.9,3448.8,0.29026]
[1735867234217,3.49805,3448.9,3448.7,2.59010753]
[1735867235220,3.2078,3448.9,3448.7,2.29984753]
[1735867235423,0.29026,3448.7,3448.6,1.144]
[1735867236422,3.2078,3448.9,3448.6,1.144]
[1735867236623,0.29026,3448.7,3448.6,1.144]
[1735867237021,0.29028,3448.6,3448.4,2.59012753]
[1735867237219,3.39477212,3449.1,3448.4,2.29984753]
[1735867237220,3.49808,3448.5,3448.4,2.29984753]
[1735867237421,3.2078,3448.5,3448.4,2.29984753]
[1735867237622,3.49808,3448.5,3448.4,2.29984753]
[1735867237922,3.2078,3448.5,3448.4,2.59013753]
[1735867239116,3.2078,3448.5,3448.1,2.29984753]
[1735867239325,3.2078,3448.5,3448.2,0.2903]
[1735867239624,3.49809,3448.5,3448.3,0.2903]
[1735867240324,3.49809,3448.5,3448.2,0.2903]
[1735867240619,3.2078,3448.5,3448.0,1.144]
[1735867240825,0.29029,3448.4,3448.1,0.29031]
[1735867241317,3.2078,3448.5,3448.0,3.44384753]
[1735867241526,3.2078,3448.5,3448.0,1.144]
[1735867241723,3.39477212,3448.9,3448.4,2.29984753]
[1735867241724,3.39477212,3448.7,3448.4,2.29984753]
[1735867241925,3.39477212,3448.7,3448.6,2.59011753]
[1735867243223,3.2078,3448.9,3448.6,2.29984753]
[1735867243423,3.2078,3448.9,3448.8,0.29026]
[1735867246331,3.39477212,3449.5,3449.4,0.2902]
[1735867246522,3.39477212,3449.5,3449.4,3.73404753]
[1735867247230,4.23391149,3449.7,3449.6,0.29019]
[1735867247422,3.53441149,3449.7,3449.6,3.49799]
[1735867247618,6.78421724,3450.3,3450.2,0.29014]
[1735867247824,3.2078,3451.2,3450.3,0.29013]
[1735867247825,3.39389635,3450.4,3450.3,0.29013]
[1735867248026,1.56923984,3450.4,3450.3,0.29013]
[1735867248228,0.86953984,3450.4,3450.3,5.29013]
[1735867249428,3.2078,3451.2,3451.1,0.29006]
[1735867249629,3.2078,3451.2,3451.1,1.43406]
[1735867250528,3.2078,3451.9,3451.1,1.144]
[1735867250731,3.2078,3451.9,3451.8,0.29]
[1735867251135,3.2078,3451.9,3451.8,2.58984753]
[1735867251531,3.2078,3451.9,3451.8,3.73384753]
[1735867251727,3.2078,3451.9,3451.8,3.44384753]
[1735867252137,3.2078,3451.9,3451.8,1.144]
[1735867253428,3.2078,3451.9,3451.8,1.434]
[1735867254233,3.2078,3451.9,3451.8,1.144]
[1735867255934,3.2078,3451.9,3451.8,1.434]
[1735867257530,3.2078,3451.9,3451.8,1.144]
[1735867258236,44.0078,3451.9,3451.8,1.144]
[1735867259433,0.29002,3451.7,3451.6,1.155]
[1735867260235,0.29002,3451.7,3451.2,2.58989753]
[1735867260236,44.0078,3451.9,3451.2,2.29984753]
[1735867260440,3.2078,3451.3,3451.1,1.155]
[1735867261932,0.29006,3451.2,3450.9,2.29984753]
[1735867262140,0.29006,3451.2,3451.0,1.155]
[1735867262335,0.29006,3451.2,3450.9,2.29984753]
[1735867262534,0.29006,3451.2,3450.9,3.45484753]
[1735867263036,3.2078,3451.3,3450.9,2.29984753]
[1735867263236,3.2078,3451.3,3450.9,3.45484753]
[1735867263436,0.29007,3451.1,3450.9,3.45484753]
[1735867264443,3.2078,3451.3,3450.9,3.45484753]
[1735867264642,0.29006,3451.2,3450.9,3.45484753]
[1735867265041,3.2078,3451.3,3450.9,3.45484753]
[1735867265342,3.2078,3451.3,3451.2,0.29005]
[1735867265547,3.2078,3451.3,3451.2,2.29984753]
[1735867266337,3.2078,3451.3,3451.0,0.29006]
[1735867266937,3.2078,3451.3,3450.9,3.45484753]
[1735867267141,3.2078,3451.3,3451.1,0.29006]
[1735867267840,3.2078,3451.3,3450.9,3.45484753]
[1735867268253,3.2078,3451.3,3451.1,0.29006]
[1735867268548,3.2078,3451.3,3451.2,1.44505]
[1735867268949,3.2078,3451.3,3451.2,1.155]
[1735867274842,3.2078,3451.3,3451.2,1.44505]
[1735867275451,3.2078,3451.3,3451.2,1.155]
[1735867275650,3.2078,3451.3,3450.9,2.29984753]
[1735867275859,0.29005,3451.2,3450.9,1.44508]
[1735867276155,3.2078,3451.3,3450.9,1.44508]
[1735867276357,3.49785,3451.3,3450.9,1.44508]
[1735867276654,3.49785,3451.3,3451.0,0.29007]
[1735867276857,3.2078,3451.3,3451.1,0.29006]
[1735867277359,3.2078,3451.3,3451.2,0.29005]
[1735867279254,3.2078,3451.3,3451.2,2.58989753]
[1735867280468,3.2078,3451.9,3451.8,0.29]
[1735867280757,3.2078,3451.9,3451.8,1.445]
[1735867281657,40.8,3452.1,3452.0,0.28999]
[1735867282162,3.2078,3452.3,3452.2,0.28997]
[1735867282660,3.2078,3452.3,3452.2,2.58981753]
[1735867284753,3.2078,3452.3,3452.2,0.28997]
[1735867285155,3.2078,3452.3,3451.9,2.29984753]
[1735867285156,3.2078,3452.3,3452.1,1.155]
[1735867285361,3.49776,3452.3,3452.1,1.155]
[1735867286168,3.2078,3452.3,3452.1,1.155]
[1735867286369,3.49777,3452.3,3452.1,1.155]
[1735867286568,0.28997,3452.2,3452.1,1.155]
[1735867287268,41.08997,3452.2,3452.1,1.155]
[1735867288065,40.8,3452.2,3452.1,1.155]
[1735867288566,41.08997,3452.2,3452.1,1.155]
[1735867289064,40.8,3452.2,3451.5,3.2078]
[1735867289372,40.8,3452.2,3451.6,1.147]
[1735867289373,3.2078,3451.9,3451.6,1.147]
[1735867289563,3.2078,3451.9,3451.3,2.29984753]
[1735867289564,0.29002,3451.6,3451.3,7.13614673]
[1735867289867,0.29003,3451.5,3451.4,1.147]
[1735867290468,0.29002,3451.6,3451.4,1.43704]
[1735867291271,0.29002,3451.6,3451.4,1.147]
[1735867291472,3.2078,3451.9,3451.4,1.43704]
[1735867291771,0.29003,3451.6,3451.4,1.43704]
[1735867292565,3.2078,3451.9,3451.1,3.2078]
[1735867292566,3.2078,3451.9,3451.3,0.29004]
[1735867292968,3.2078,3451.9,3451.2,1.147]
[1735867292969,3.2078,3451.9,3451.4,0.29004]
[1735867293381,5.4562418,3451.9,3451.2,1.147]
[1735867293673,5.4562418,3451.9,3451.3,0.29005]
[1735867293674,0.29004,3451.4,3451.3,0.29005]
[1735867293874,0.29003,3451.5,3451.3,0.29005]
[1735867294173,0.29003,3451.5,3451.3,0.29004]
[1735867294373,5.4562418,3451.9,3451.2,1.147]
[1735867294676,0.29003,3451.5,3451.3,0.29005]